Cogmind - Beta 14 @@@ ROGUE MODE // 2024.08.12 @ 21:20:47 Player: Decinym Result: Destroyed self with Subdweller Shrapnel Launcher Performance ------------- Evolutions (0) 0 Regions Visited (2) 400 Robots Destroyed (45) 225 Value Destroyed (1085) 1085 Prototype IDs (0) 0 Alien Tech Used (0) 0 Bonus (0) 0 TOTAL SCORE: 1710 Bonus ------- None Cogmind --------- Core Integrity 0/250 Matter 224/300 Energy 250/250 System Corruption 4% Temperature Cool (0) Movement Treading (160) Location -10/Subcaves Parts ------- > --- POWER (1) -------- Ion Engine > --- PROPULSION (2) --- Spiked Treads Spiked Treads > --- UTILITY (2) ------ Scrap Shield > --- WEAPON (2) ------- Battle Rifle Subdweller Shrapnel Launcher > --- INVENTORY (5) ---- Light Treads Light Treads Subdweller Machine Gun Multitool Peak State ------------ > --- POWER ------------ Ion Engine > --- PROPULSION ------- Spiked Treads Spiked Treads > --- UTILITY ---------- Scrap Shield > --- WEAPON ----------- Subdweller Beam Cannon Subdweller Beam Cannon > --- INVENTORY -------- Light Treads Light Treads Subdweller Laser Subdweller Beam Cannon Assault Rifle [Rating: 13] Favorites ----------- Power Ion Engine Engine Ion Engine Propulsion Light Treads Treads Light Treads Leg Aluminum Leg Utility Scrap Shield Device Structural Scanner Storage Small Storage Unit Protection Scrap Shield Weapon Assault Rifle Energy Gun Subdweller Laser Energy Cannon Subdweller Beam Cannon Ballistic Gun Assault Rifle Ballistic Cannon Light Cannon Launcher Subdweller Shrapnel Launcher Build | -11 -10 -10 ------- Run | Yrd Mat Sub Slots Evolved . | . . . Power . | . . . Propulsion . | . . . Utility . | . . . Weapon . | . . . Parts Attached 34 | 1 13 20 Power 2 | . 1 1 Engine 2 | . 1 1 Core . | . . . Reactor . | . . . Propulsion 9 | . 6 3 Treads 9 | . 6 3 Leg . | . . . Wheel . | . . . Hover . | . . . Flight . | . . . Utility 5 | . 2 3 Device 2 | . 2 . Storage . | . . . Processor . | . . . Hackware . | . . . Protection 3 | . . 3 Artifact . | . . . Weapon 18 | 1 4 13 Energy Gun 5 | 1 1 3 Energy Cannon 6 | . . 6 Ballistic Gun 5 | . 2 3 Ballistic Cannon 1 | . 1 . Launcher 1 | . . 1 Special Weapon . | . . . Impact Weapon . | . . . Slashing Weapon . | . . . Piercing Weapon . | . . . Special Melee Weapon . | . . . Unidentified Prototypes . | . . . Parts Lost 1 | . . 1 Power . | . . . Propulsion . | . . . Utility . | . . . Weapon 1 | . . 1 Highest Loss Streak 1 | . . 1 To Critical Strikes . | . . . Average Slot Usage (%) 91 | . 97 87 Engine 13 | . 13 14 Treads 26 | . 23 28 Leg 1 | . 3 . Device 5 | . 11 2 Storage 6 | . 14 2 Protection 7 | . . 11 Energy Gun 3 | . 3 3 Energy Cannon 10 | . . 16 Ballistic Gun 13 | . 22 7 Peak Build Rating 13 | 6 7 13 Average Rating 9 | 6 6 11 On Entrance 6 | 6 6 7 Naked Turns . | . . . Heaviest Build 39 | 12 16 39 Greatest Support 40 | 20 40 40 Greatest Overweight (x) . | . . . Average Overweight (x) . | . . . Largest Inventory Capacity 8 | 8 8 8 Average Capacity 6 | 8 8 5 Most Carried 8 | 6 8 8 Average Carried 6 | 6 7 5 Final Capacity 8 | 8 8 5 Final Carried 8 | 6 8 4 Class Distribution -------------------- 48% | Mutant 48% | Subdweller-Mutant 3% | Derelict-Mutant Dominant Class ---------------- Mutant | -10/Materials Subdweller-Mutant | -10/Subcaves Resources | -11 -10 -10 ----------- Run | Yrd Mat Sub Matter Collected 1018 | 200 386 432 Remotely . | . . . Salvage Created 1842 | . 1054 788 Parts 111 | . 59 52 Haulers Intercepted 2 | . 2 . Recyclers Shooed 2 | . 2 . Parts Field Recycled . | . . . Retrieved Matter . | . . . Parts Self-Destructed 25 | . . 25 Prevented . | . . . Kills | -11 -10 -10 ------- Run | Yrd Mat Sub Combat Hostiles Destroyed 36 | . 19 17 Guns 23 | . 18 5 Cannons 11 | . 1 10 AOE 2 | . . 2 Classes Destroyed 10 | . 7 3 Worker 1 | . 1 . Tunneler 1 | . 1 . Hauler 2 | . 2 . Recycler 4 | . 4 . Operator 1 | . 1 . Swarmer 12 | . 9 3 Grunt 10 | . 10 . Artisan 1 | . . 1 Cobbler 1 | . . 1 Subdweller 14 | . . 14 Best Kill Streak 7 | . 7 3 Combat Bots Only 5 | . 5 3 Max Kills in Single Turn 2 | . 2 2 Gunslinging 1 | . 1 . Exploded 2 | . . 2 Melee . | . . . Uniques/NPCs Destroyed . | . . . Combat | -11 -10 -10 -------- Run | Yrd Mat Sub Hostile Shots Fired 166 | . 94 72 Missed 41 | . 21 20 Damage Taken 1813 | . 785 1028 Core 275 | . 126 149 Absorbed by Shields . | . . . Regen/Repaired (Parts) 105 | . 105 . Core Remaining (%) 100 | 100 . . Volleys Fired 131 | . 63 68 Largest 2 | . 2 2 Hottest 160 | . 75 160 Shots Fired 256 | . 128 128 Gun 176 | . 118 58 Cannon 77 | . 10 67 Launcher 3 | . . 3 Special . | . . . Kinetic 136 | . 94 42 Thermal 120 | . 34 86 Explosive . | . . . Electromagnetic . | . . . Robot Hit Streak 36 | . 17 36 Robot Miss Streak 3 | . 3 1 Penetration Max . | . . . Secondary Targets 2 | . 1 1 Max Gunslinging Chain 1 | . 1 1 Shots Hit Robots 169 | . 93 76 Core Hits 74 | . 45 29 Critical Kills 1 | . . 1 Critical Parts Destroyed 1 | . 1 . Critical Strikes 3 | . 2 1 Destroy 2 | . 1 1 Blast 1 | . 1 . Melee Attacks . | . . . Impact . | . . . Slashing . | . . . Piercing . | . . . Sneak Attacks . | . . . Combat Hostiles . | . . . Follow-up Attacks . | . . . Damage Inflicted 2892 | . 1079 1813 Guns 1656 | . 1005 651 Cannons 982 | . 65 917 Explosions 245 | . . 245 Melee . | . . . Ramming 9 | . 9 . Kinetic 1448 | . 763 685 Thermal 1435 | . 307 1128 Explosive . | . . . Electromagnetic . | . . . Impact . | . . . Slashing . | . . . Piercing . | . . . Highest Corruption 4 | . 4 4 Average Corruption 3 | . 2 4 Corruption Purged . | . . . Corruption Blocked . | . . . Effects 96 | . 17 79 Message Errors 18 | . 4 14 Matter Fused 23 | . 2 21 Heat Flow Errors 19 | . 3 16 Energy Discharges 7 | . . 7 Parts Fused 1 | . . 1 Data Loss (minor) 7 | . . 7 Data Loss (major) 8 | . 3 5 Misfires 9 | . 3 6 Alerts 3 | . 1 2 Weapon Failures 1 | . 1 . Overload Shots . | . . . Overflow Damage 7 | . . 7 Projectiles 7 | . . 7 Explosions . | . . . Melee . | . . . Knockbacks 2 | . 2 . Impact . | . . . Kinetic 2 | . 2 . Secondary . | . . . Self-Inflicted Damage 60 | . . 60 Shots 3 | . . 3 Rammed 6 | . 6 . Targets Rammed 6 | . 6 . Kicked . | . . . Crushed . | . . . Highest Temperature 259 | . 200 259 Average Temperature 63 | . 58 66 Received Heat Transfer 537 | . 300 237 Siege Activations . | . . . Robots Corrupted . | . . . Combat Hostiles . | . . . Parts Fried . | . . . Impact Corruptions . | . . . Robots Melted . | . . . Combat Hostiles . | . . . Parts Melted 1 | . . 1 Heat Transferred 2171 | . 700 1471 Parts Sabotaged . | . . . Parts Stolen . | . . . Parts Stripped . | . . . Power Chain Reactions . | . . . Alert | -11 -10 -10 ------- Run | Yrd Mat Sub Peak Influence 320 | . 320 . Initial . | . . . Average 156 | . 156 . Maximum Alert Level 1 | . 1 . Low Security (%) 70 | 100 70 . Level 1 29 | . 29 . Level 2 . | . . . Level 3 . | . . . Level 4 . | . . . Level 5 . | . . . High Security . | . . . Max Security . | . . . Squads Dispatched 5 | . 5 . Investigation 4 | . 4 . Extermination . | . . . Reinforcement 1 | . 1 . Assault . | . . . Garrison . | . . . Intercept . | . . . Searches Triggered . | . . . Construction Impeded . | . . . Haulers Reinforced . | . . . Active Scanning Responses . | . . . Cargo Convoy Interrupts . | . . . Stealth | -11 -10 -10 --------- Run | Yrd Mat Sub Distress Signals 3 | . 3 . Communications Jammed . | . . . Distress Signals . | . . . Times Spotted 54 | . 36 18 Peak Tracking Total 6 | . 4 6 Tactical Retreats 2 | . 1 1 Traps | -11 -10 -10 ------- Run | Yrd Mat Sub Traps Triggered 4 | . 4 . Indirectly . | . . . Trap Hack Attempts . | . . . Triggered . | . . . Disarmed . | . . . Reprogrammed . | . . . Reused . | . . . Traps Extracted . | . . . Installed . | . . . Triggered . | . . . Machines | -11 -10 -10 ---------- Run | Yrd Mat Sub Machines Disabled . | . . . Max in Single Turn . | . . . Machines Repaired . | . . . Machines Dismantled . | . . . Machines Sabotaged . | . . . Overloaded Fab Kills . | . . . Hacking | -11 -10 -10 --------- Run | Yrd Mat Sub Machines Accessed 6 | . 5 1 Terminals 4 | . 4 . Fabricators . | . . . Repair Stations 1 | . 1 . Recycling Units . | . . . Scanalyzers . | . . . Garrison Access . | . . . Total Hacks 21 | . 16 5 Successful 13 | . 8 5 Failed 8 | . 8 . Catastrophic 2 | . 2 . Database Lockouts . | . . . Manual 1 | . 1 . Terminals 11 | . 11 . Fabricators . | . . . Repair Stations 5 | . 5 . Recycling Units . | . . . Scanalyzers . | . . . Garrison Access . | . . . Terminal Hacks 9 | . 4 5 Record 5 | . . 5 Branch Access Points 1 | . 1 . Unreport Threat 1 | . 1 . Zone Layout 2 | . 2 . Fabricator Hacks . | . . . Repair Station Hacks 4 | . 4 . Scan Component 2 | . 2 . Repair 2 | . 2 . Recycling Unit Hacks . | . . . Scanalyzer . | . . . Garrison Access Hacks . | . . . Unauthorized Hacks . | . . . Terminals . | . . . Fabricators . | . . . Repair Stations . | . . . Recycling Units . | . . . Scanalyzers . | . . . Garrison Access . | . . . Data Cores Recovered 1 | . 1 . Used 1 | . 1 . Hacking Detections 4 | . 4 . Full Trace Events 2 | . 2 . Feedback Events 1 | . 1 . Corruption 1 | . 1 . Feedback Blocked . | . . . Robot Schematics Acquired . | . . . Robots Built . | . . . Authchips . | . . . Time . | . . . Total Robot Build Rating . | . . . Part Schematics Acquired . | . . . Parts Built . | . . . Authchips . | . . . Time . | . . . Total Part Build Rating . | . . . Parts Repaired 2 | . 2 . Time 52 | . 52 . Parts Recycled . | . . . Recycled Matter . | . . . Retrieved Matter . | . . . Retrieved Components . | . . . Parts Scanalyzed . | . . . Part Schematics Acquired . | . . . Parts Damaged . | . . . Bothacking | -11 -10 -10 ------------ Run | Yrd Mat Sub Used RIF Installer . | . . . Robots Hacked . | . . . Non-combat . | . . . Combat . | . . . Robot Hacks Applied . | . . . Relay Couplers Released . | . . . Fabnet Peak Effective % . | . . . Robots Rewired . | . . . Allies Hacked . | . . . Hacks Repelled . | . . . Allies | -11 -10 -10 -------- Run | Yrd Mat Sub Total Allies . | . . . Largest Group . | . . . Highest-Rated Group . | . . . Highest-Rated Ally . | . . . Total Orders . | . . . Ally Attacks . | . . . Total Damage . | . . . Kills . | . . . Allies Corrupted . | . . . Allies Melted . | . . . Intel | -11 -10 -10 ------- Run | Yrd Mat Sub Robot Analysis Total . | . . . Derelict Logs Recovered 1 | . . 1 Drone Launches . | . . . Drone Recoveries . | . . . Exploration | -11 -10 -10 ------------- Run | Yrd Mat Sub Turns Passed 4641 | 2 1670 2969 Spaces Moved 2568 | 1 892 1675 Core . | . . . Treads 2443 | . 768 1675 Legs 125 | 1 124 . Wheels . | . . . Hover . | . . . Flight . | . . . Fastest Speed 120 | 120 120 160 Average Speed 158 | 120 154 160 Slowest Speed 160 | 120 160 160 Overloaded Moves . | . . . Propulsion Burnouts . | . . . Robots Hopped . | . . . Cave-ins Triggered . | . . . Exploration Rate (%) 56 | 2 97 71 Regions Visited 2 Branch Regions 1 Pre-discovered Areas 2 | . . 2 Known Exits Taken . | . . . Unknown Exits Taken 2 | 1 1 . Scrap Searched 17 | . . 17 Spaces Dug . | . . . Terrain Destroyed 60 | . . 60 Melee . | . . . Projectile 5 | . . 5 AOE 55 | . . 55 Terrain Rammed . | . . . Walls Destroyed . | . . . Machines Disabled . | . . . Actions | -11 -10 -10 --------- Run | Yrd Mat Sub Total 2905 | 1 1062 1842 Wait 114 | . 66 48 Move 2566 | . 891 1675 Hop . | . . . Pick Up 12 | . 8 4 Fast Attach 17 | . 9 8 Attach 5 | . . 5 Detach . | . . . Swap 12 | 1 4 7 Drop 35 | . 15 20 Fire 131 | . 63 68 Melee . | . . . Ram . | . . . Kick . | . . . Crush 6 | . 6 . Escape Stasis . | . . . Rewire . | . . . Trap . | . . . Miscellaneous 7 | . . 7 Route ------- -11/Scrapyard -10/Materials (discovered 6 exits: [*Mat x3] / *Min x2 / *Sub) -10/Subcaves (discovered 2 exits: [*Mat] / [Rec]) History --------- Turn | Location | Event 3 | -11/Scrapyard | Discovered new exit (range 0) 3 | -11/Scrapyard | Entered Materials 35 | -10/Materials | Identified exit to Mines 309 | -10/Materials | Build established: Mutant 346 | -10/Materials | Discovered new exit (range 15) 524 | -10/Materials | Discovered new exit (range 12) 566 | -10/Materials | Repaired Ion Engine 594 | -10/Materials | Repaired Lgt. Treads 777 | -10/Materials | Core integrity fell below 50% 821 | -10/Materials | Discovered new exit (range 8) 1030 | -10/Materials | Discovered new exit (range 17) 1673 | -10/Materials | Entered Subcaves 1777 | -10/Subcaves | Visited 4L-MR0's lab 1897 | -10/Subcaves | Discovered new exit (range 12) 2116 | -10/Subcaves | Learned location of 1 exit from Materials 2128 | -10/Subcaves | Disturbed a concealed Subdweller 2563 | -10/Subcaves | Build established: Subdweller-Mutant 2615 | -10/Subcaves | Core integrity fell below 20% 3010 | -10/Subcaves | Learned location of Zion (-7) 3010 | -10/Subcaves | Met a Zionite searching for "candidates" 3196 | -10/Subcaves | Disturbed a concealed Subdweller 3651 | -10/Subcaves | Ambushed by angry Subdweller bent on revenge 3940 | -10/Subcaves | Discovered new exit (range 13) 4365 | -10/Subcaves | Shifting Twisted Machinery released Mak. Sword 4394 | -10/Subcaves | Shifting Twisted Machinery released Flamer 4431 | -10/Subcaves | Visited Clippyterm 4435 | -10/Subcaves | Learned location of Extension (-5) 4435 | -10/Subcaves | Learned Factory trap positions 4515 | -10/Subcaves | Shifting Twisted Machinery released Sub. Power Source 4529 | -10/Subcaves | Shifting Twisted Machinery released Sub. Machine Gun 4642 | -10/Subcaves | Destroyed self with Subdweller Shrapnel Launcher Last Messages --------------- than I can offer. >>Record "LRC-V1" It looks like you're REDACTED, I can suggest REDACTED and REDACTED. Also definitely avoid REDACTED. 04482_ System corrupted: Matter fused (-5). 04494_ Sub. Beam Cannon shoots sparks and powers down. 04502_ EX-J4R(R) destroyed. 04502_ X1-Z90(R) destroyed. 04510_ Acquired 11 matter. 04512_ Dropped Scrap Shield. 04513_ Dropped Broken Sub. Beam Cannon. Sub. Power Source falls loose from the Twisted Machinery. 04518_ Acquired Scrap Shield. 04526_ System corrupted: Energy discharge (-65). Sub. Machine Gun falls loose from the Twisted Machinery. 04544_ System corrupted: Matter fused (-8). 04557_ Acquired 20 matter. 04591_ System corrupted: Heat flow error (+236). 04642_ System corrupted: FCS attempts to trigger Sub. Shrapnel Launcher. 04642_ System corrupted: Sub. Shrapnel Launcher misfires. Map ----- +----------------------------------------------------+ | ????#######??????????????????????????# #????? | | ????#"""""#??????????????????????????## ##????? | | ###?#""X""#???????????????????????????# ##?????? | | #?#" "#??????????????????????????## ##??????? | | #?### ###??????????????????????????# #???????? | | #?### ##?###???????????????????????# ##??????? | | ### ## ##??????????????????????## #??????? | | #?????????????????????## ##??????? | | ###????????????????????## ##??????? | | ## ##?????????????????###??# ##?????? | | ?## ###??????????????????#%#### ##????? | | ??## #######???????????????#!"# #" #????? | | ???# ### # #???????????????#%!#[! #????? | | ??## ##???????????????#"!%[#" # #????? | | ??# #???????????????##%]"## # ##????? | | ## #????????????????####### #?????? | | # ### #??????????????????????## ##?????? | | ### ### ##???????????????????????# ##?????? | | #??####### ##???????????????????????# #?????? | | ????### # #???????????????????????## #?????? | | ?????# #????????????????????????#[ #?????? | | ?????# #???????????????????????## ##?????? | | ?????# #######??#### ;;;;;??????# % #??????? | | ?????## ### #### #;; ;#?????# ##?????? | | ??????# ##????# & ##????? | | ??????# """ @ #??### #????? | | ???# """"""""/[ ;;;[ ####" #????? | | ???# """""""""""## ;#; ## #????? | | ???#"##""## ### ## ;### #### ##????? | | ???##?# ?# ####### ##??## #?## ##????? | | ?????# #????###???# ### #????? | | ????# #??????????# ## ###????? | | ???? #??????????## ######## | | ????? |"" ### #???????????## | | ?????? "" #??#""?????????????# ] | | ?????????" #??????????????????# ## | | ?????????? ##??????????????????# ### ## | | ???????????????????????????????## ##?## | | ????????????????????????????????## ###???# | | ?????????????????????????????????# ##?????## | | ?????????????????????????????????# ##???????## | | ?????????????????????????????????# ##?????????? | | ?????????????????????????????????### ??????????? | | ??????????????????????????????????# ?????????? | | ??????????????????????????????????## #?????????? | | ???????????????????????????????????#### ?????????? | | ???????????????????????????????????????#?????????# | | ?????????????????????????????????????????????????# | | ?????????????????????????????????????????????????? | | ?????????????????????????????????????????????????? | +----------------------------------------------------+ Best States ------------- Heat Dissipation 35 Energy Generation 10 Energy Capacity 250 Matter Stores 300 Matter Capacity 300 Sight Range 16 Terrain Scan Density 10 Armor Coverage 800 Evasion (%) 55 Recoil Reduction 2 Item Schematics ----------------- None Robot Schematics ------------------ None Fabricated ------------ Nothing Alien Tech Used ----------------- None Achievements -------------- None Challenges ------------ None Game ------ Seed LargeBarrageFemtoactuators Manual? 0 Play Time 00:22:40 Cumulative 424.2 hours Start 2024.08.09 @ 23:50:57 End 2024.08.12 @ 21:20:47 Sessions 3 Manual Loads 0 Difficulty Rogue Special Mode None Game No. 432 Rogue 432 Adventurer 0 Explorer 0 Win Type - Total 30 Types 16/3/5/1/2/0/3/0/0 Lore% 84 Gallery% 88 Achievement% 82 Wizard Run 0 Options --------- Layout 0 ASCII 0 Keyboard 0 Movement Arrows Keybinds 0 Fullscreen 2 Font 24/Smallcaps Map View 76x50 Zoom Use 0% Tactical HUD 1 Map Filters NONE Filters NONE Steam 1 RUN: 0e2e1a8d-f153-431b-a2ce-cc05aa3a722f